[Event "French Top 16-A 2024"]
[Site "Chartres"]
[Date "2024.06.04"]
[Round "6.1"]
[White "Erigaisi Arjun"]
[Black "Pichot, Alan"]
[Result "1/2-1/2"]
[ECO "D35"]
[WhiteElo "2762"]
[BlackElo "2635"]
[Annotator "TA"]
[PlyCount "57"]
[EventDate "2024.06.01"]
[EventType "team-tourn"]
[EventCountry "FRA"]
[SourceTitle "playchess.com"]
[Source "ChessBase"]
[SourceQuality "1"]
[TimeControl "40/5400+30:1800+30"]

{[%evp 9,57,0,18,15,17,24,20,21,17,18,20,9,12,13,49,27,29,23,64,13,62,69,58,16,41,7,0,0,0,0,64,-17,0,0,0,0,0,0,0,0,0,0,0,0,0,0,0,-11,0,0]} 1. d4 {[%emt 0:01:07]} Nf6 {[%emt 0:00:16]} 2. c4 {[%emt 0:00:05]} e6 {[%emt 0:00:09]} 3. Nf3 {[%emt 0:00:08]} d5 {[%emt 0:00:22]} 4. cxd5 {[%emt 0:00:07]} exd5 {[%emt 0:00:08]} 5. Nc3 {[%emt 0:00:05]} h6 {[%emt 0:05:25]} 6. Bf4 {[%emt 0:00:45]} Bd6 {[%emt 0:00:12]} 7. Bxd6 {[%emt 0:00:07]} Qxd6 {[%emt 0:00:06]} 8. e3 {[%emt 0:00:05]} O-O {[%emt 0:01:17]} 9. Bd3 {[%emt 0:00:06]} Bg4 {[%emt 0:02:42]} 10. h3 {[%emt 0:03:32]} Bxf3 {[%emt 0:00:21]} 11. Qxf3 {[%emt 0:00:07]} Nbd7 {[%emt 0:04:24]} 12. g4 {[%emt 0:07:33]} c5 {[%emt 0:02:36]} 13. O-O-O {[%emt 1:23:13]} Rfc8 {[%emt 0:12:35]} 14. Kb1 $1 {[%emt 0:00:00] With the idea h4. White is much more active.} c4 {[%emt 0:03:39]} 15. Bf5 {[%emt 0:00:00]} b5 {[%emt 0:00:15][%cal Bb7b5,Bb5b4][%mdl 32]} 16. Qf4 $1 {[%emt 0:00:00]} Qc6 {[%emt 0:25:13]} 17. e4 {[%emt 0:00:00]} b4 $36 {[%emt 0:04:28][%mdl 2048] Black is more active.} 18. Nxd5 {[%emt 0:00:00]} Nxd5 {[%emt 0:00:09]} 19. exd5 {[%emt 0:00:00]} Qf6 {[%emt 0:00:34]} ({Of course not} 19... Qxd5 $6 20. Be4 Qa5 21. Bxa8 Rxa8 22. d5 $18) (19... Qa4 $1 $11) 20. Qg3 {[%emt 0:00:00]} (20. Rdg1 $1 $14 Re8 21. g5 hxg5 22. Rxg5) 20... Rd8 {[%emt 0:04:16] The position is equal.} (20... c3 $5) 21. h4 {[%emt 0:00:00]} Nb6 {[%emt 0:01:13]} 22. Be4 {[%emt 0:00:00]} Qd6 {[%emt 0:06:37]} 23. g5 {[%emt 0:00:00]} Qxg3 {[%emt 0:06:46]} 24. fxg3 {[%emt 0:00:00]} Nxd5 {[%emt 0:02:49]} 25. gxh6 {[%emt 0:00:00]} gxh6 {[%emt 0:00:08]} 26. Rc1 {[%emt 0:00:00]} Rac8 {[%emt 0:01:21]} 27. Rhf1 {[%emt 0:00:00] Prevents Nf6} Kg7 {[%emt 0:01:01]} 28. Bh1 {[%emt 0:00:00]} c3 {[%emt 0:04:33][%cal Oc3c2] [#] Hoping for ...c2+!} 29. Bxd5 {[%emt 0:00:00] Weighted Error Value: White=0.07 (flawless) /Black=0.09 (flawless) .  Mistake:       	White=1     	Black=1      Inaccurate:     	White=1     	Black=2      OK:         	White=12    	Black=11     Best:        	---       	Black=1      Strong:       	White=2     	---} 1/2-1/2

[Event "French Top 16-A 2024"]
[Site "Chartres"]
[Date "2024.06.04"]
[Round "6.1"]
[White "Alonso Rosell, Alvar"]
[Black "Albornoz Cabrera, Carlos Daniel"]
[Result "1/2-1/2"]
[ECO "B53"]
[WhiteElo "2556"]
[BlackElo "2612"]
[Annotator "TA"]
[PlyCount "67"]
[EventDate "2024.06.01"]
[EventType "team-tourn"]
[EventCountry "FRA"]
[SourceTitle "playchess.com"]
[Source "ChessBase"]
[SourceQuality "1"]
[TimeControl "40/5400+30:1800+30"]

{[%evp 20,67,0,0,0,6,0,26,27,1,51,47,42,44,47,47,32,41,60,49,49,49,57,56,61,19,42,44,51,36,35,30,28,9,8,7,0,0,0,0,0,0,8,0,0,0,0,0,0,0]} 1. e4 {[%emt 0:05:07]} c5 {[%emt 0:00:06]} 2. Nf3 {[%emt 0:00:04]} d6 {[%emt 0:00:02]} 3. d4 {[%emt 0:00:05]} cxd4 {[%emt 0:00:03]} 4. Qxd4 {[%emt 0:00:05]} Nf6 {[%emt 0:00:05]} 5. Nc3 {[%emt 0:00:03]} Nc6 {[%emt 0:00:04]} 6. Bb5 {[%emt 0:00:04]} Bd7 {[%emt 0:00:05]} 7. Bxc6 {[%emt 0:00:04]} Bxc6 {[%emt 0:00:03]} 8. Bg5 {[%emt 0:00:06]} e6 {[%emt 0:00:08]} 9. O-O-O {[%emt 0:00:04]} Be7 {[%emt 0:00:08]} 10. Rhe1 {[%emt 0:00:05]} O-O {[%emt 0:00:49]} 11. e5 {[%emt 0:00:11]} dxe5 {[%emt 0:00:50]} 12. Nxe5 {[%emt 0:02:26]} Qa5 {[%emt 0:06:49]} 13. Nxc6 {[%emt 0:00:59]} bxc6 {[%emt 0:00:23] White has an edge.} 14. Ne4 {[%emt 0:01:15][%cal Re4f6]} (14. Qe5 {simplifies} Qb4 15. Ne4 Nxe4 16. Bxe7 Qxe7 17. Rxe4 Rad8 18. Red4) 14... Qxa2 {[%emt 0:26:39]} (14... Rfd8 $11 15. Qc4 (15. Nxf6+ $2 {loses.} gxf6 16. Qg4 fxg5 $19) 15... Nd5 16. Bxe7 (16. Qxc6 $2 {perishes.} Nb4 $19) 16... Nxe7) 15. Nxf6+ $14 {[%emt 0:07:10]} (15. Bxf6 $2 {too greedy.} Rad8 16. Re3 Rxd4 17. Bxd4 Rd8 $19) 15... gxf6 {[%emt 0:02:17] Black is weak on the dark squares} 16. Bxf6 {[%emt 0:00:43][%cal Rd4g4] [#]} Qa1+ {[%emt 0:05:23]} 17. Kd2 {[%emt 0:00:19][%cal Rd4g4]} Qa5+ {[%emt 0:01:05]} 18. Ke2 {[%emt 0:05:24] White wants to mate with Qg4+. Dancing on a razor blade.} Qh5+ {[%emt 0:05:52]} 19. g4 {[%emt 0:00:28]} Bxf6 {[%emt 0:10:09]} 20. Qxf6 {[%emt 0:00:55]} Qg6 {[%emt 0:00:12]} 21. Qxg6+ {[%emt 0:14:15]} hxg6 {[%emt 0:00:11][%mdl 4096] Endgame. KRR-KRR} 22. Rd7 {[%emt 0:00:38]} Rfb8 {[%emt 0:02:01]} 23. b3 {[%emt 0:01:02]} Rb4 {[%emt 0:05:17]} 24. h3 {[%emt 0:10:17]} a5 {[%emt 0:05:41]} 25. Ra1 {[%emt 0:16:47]} Kg7 {[%emt 0:02:05]} 26. Rd6 {[%emt 0:19:30]} c5 {[%emt 0:03:43] The position is equal.} 27. Rc6 {[%emt 0:05:38]} Rh8 {[%emt 0:06:41]} 28. Rxc5 {[%emt 0:01:52]} Rxh3 {[%emt 0:00:02]} 29. Ra4 {[%emt 0:00:14]} Rxa4 {[%emt 0:02:25]} 30. bxa4 {[%emt 0:00:38][%cal Of2f3]} Rh4 {[%emt 0:00:05]} 31. f3 {[%emt 0:01:05]} f5 $1 {[%emt 0:00:40]} 32. gxf5 {[%emt 0:02:48]} gxf5 {[%emt 0:04:22]} 33. Rxa5 {[%emt 0:02:02]} Kf6 {[%emt 0:00:15]} 34. c3 {[%emt 0:02:23] Weighted Error Value: White=0.06 (flawless) /Black=0.07 (flawless) .  Mistake:       	---       	Black=1      Inaccurate:     	White=2     	---        OK:         	White=6     	Black=10     Best:        	White=2     	Black=2      Strong:       	---       	Black=1} 1/2-1/2

[Event "French Top 16-A 2024"]
[Site "Chartres"]
[Date "2024.06.04"]
[Round "6.2"]
[White "Ter-Sahakyan, Samvel"]
[Black "Postny, Evgeny"]
[Result "1/2-1/2"]
[ECO "C54"]
[WhiteElo "2652"]
[BlackElo "2602"]
[Annotator "TA"]
[PlyCount "206"]
[EventDate "2024.06.01"]
[EventType "team-tourn"]
[EventCountry "FRA"]
[SourceTitle "playchess.com"]
[Source "ChessBase"]
[SourceQuality "1"]
[TimeControl "40/5400+30:1800+30"]

{[%evp 14,206,17,12,19,14,14,16,4,0,12,7,19,0,14,0,14,6,11,10,17,17,23,14,16,21,20,13,19,16,14,6,22,0,8,2,8,0,0,0,0,0,-14,-20,-16,-21,-16,-23,-22,-21,-15,-17,-16,-16,-14,-26,-22,-18,-18,-28,-30,-27,-22,-60,-25,-34,-21,-21,-21,-21,-21,-35,-12,-12,-8,-8,-8,-8,-8,-8,-8,-12,-12,-64,-64,-64,-64,-64,-36,-64,-64,-70,-70,-70,-70,-70,-70,-70,-70,-70,-63,-63,-63,-63,-63,-63,-63,-63,-63,-63,-63,-63,-63,-62,0,-62,-62,-70,-62,-62,0,-62,-62,-62,-62,-62,-62,-62,-62,-62,-62,-62,-59,-59,-59,-59,-58,-58,-51,-51,-51,-51,0,-52,-8,-8,-8,-8,0,0,0,0,0,0,0,0,0,0,0,0,0,0,0,0,0,0,0,0,0,0,0,0,0,0,0,0,0,0,0,0,0,0,0,0,0,0,0,0,0,0,0,0,0,0,0]} 1. e4 {[%emt 0:00:09]} e5 {[%emt 0:00:06]} 2. Nf3 {[%emt 0:00:06]} Nc6 {[%emt 0:00:06]} 3. Bc4 {[%emt 0:00:43]} Nf6 {[%emt 0:00:14]} 4. d3 {[%emt 0:00:05]} Bc5 {[%emt 0:00:18]} 5. c3 {[%emt 0:02:42]} h6 {[%emt 0:00:30]} 6. O-O {[%emt 0:00:30]} d6 {[%emt 0:00:01]} 7. Re1 {[%emt 1:29:45]} O-O 8. h3 {[%emt 0:00:00]} Bb6 {[%emt 0:02:29]} 9. Nbd2 {[%emt 0:00:00]} Ne7 {[%emt 0:00:20]} 10. a4 {[%emt 0:00:00] Threatens to win with a5.} c6 {[%emt 0:04:25]} 11. d4 {[%emt 0:00:00]} Ng6 {[%emt 0:02:58]} 12. Bf1 {[%emt 0:00:00]} Bc7 {[%emt 0:09:11]} 13. dxe5 {[%emt 0:00:00]} dxe5 {[%emt 0:06:09]} 14. b4 {[%emt 0:00:00]} a5 {[%emt 0:05:09]} 15. Ba3 {[%emt 0:00:00]} axb4 {[%emt 0:06:52]} 16. cxb4 {[%emt 0:00:00]} Re8 {[%emt 0:04:19]} 17. a5 {[%emt 0:00:00]} b6 {[%emt 0:08:07]} 18. axb6 {[%emt 0:00:00]} Bxb6 {[%emt 0:00:05]} 19. Nc4 {[%emt 0:00:00]} Qxd1 {[%emt 0:01:01]} 20. Rexd1 {[%emt 0:00:00]} Bc7 {[%emt 0:01:55]} 21. Nfd2 {[%emt 0:00:00]} Be6 {[%emt 0:05:40]} 22. Bb2 {[%emt 0:00:00]} Red8 {[%emt 0:16:39]} 23. Bc3 {[%emt 0:00:00]} Rxa1 {[%emt 0:06:42]} 24. Rxa1 {[%emt 0:00:00]} Bxc4 $1 {[%emt 0:00:07]} 25. Nxc4 {[%emt 0:00:00]} Nxe4 {[%emt 0:01:05]} 26. Be1 {[%emt 0:00:00]} Ne7 {[%emt 0:13:49]} 27. h4 {[%emt 0:01:53]} Nf6 {[%emt 0:00:37]} 28. Rc1 {[%emt 0:01:36]} Nfd5 {[%emt 0:01:38]} 29. Na5 {[%emt 0:02:37]} Bd6 {[%emt 0:00:31]} 30. Nb7 {[%emt 0:00:20]} Rd7 {[%emt 0:00:05]} 31. Nxd6 {[%emt 0:00:08]} Rxd6 {[%emt 0:00:04]} 32. b5 {[%emt 0:02:16]} cxb5 {[%emt 0:01:11]} 33. Bxb5 {[%emt 0:00:04]} Rb6 {[%emt 0:01:30]} 34. Bf1 {[%emt 0:00:49]} g6 {[%emt 0:00:46]} 35. g3 {[%emt 0:01:22]} Kg7 {[%emt 0:00:38]} 36. Bg2 {[%emt 0:00:08]} f5 {[%emt 0:00:19]} 37. Rd1 {[%emt 0:01:54]} Rb5 {[%emt 0:01:00]} 38. Ra1 {[%emt 0:00:43]} Kf6 {[%emt 0:00:46]} 39. Bd2 {[%emt 0:00:37]} g5 {[%emt 0:00:37]} 40. Ra6+ {[%emt 0:00:47]} Rb6 {[%emt 0:00:08]} 41. hxg5+ {[%emt 0:31:46]} hxg5 {[%emt 0:00:28]} 42. Ra5 {[%emt 0:00:00]} e4 {[%emt 0:02:04]} 43. g4 {[%emt 0:00:00]} Rb1+ {[%emt 0:06:48]} 44. Kh2 {[%emt 0:00:00]} Rb2 {[%emt 0:00:40]} 45. Ra6+ {[%emt 0:00:00]} Ke5 {[%emt 0:00:07]} 46. Bxg5 {[%emt 0:00:00]} Rxf2 {[%emt 0:03:21] Strongly threatening ...f4.} 47. Bxe7 {[%emt 0:00:00]} Nxe7 {[%emt 0:02:46]} 48. gxf5 {[%emt 0:00:00]} (48. Kg3 $11 e3 49. Ra5+ Kf6 50. Bf3) 48... Nxf5 $11 {[%emt 0:00:26][%mdl 4096] Endgame. KRB-KRN} 49. Ra5+ {[%emt 0:00:00]} Kf4 {[%emt 0:01:08] ( -> ...Nh4)} 50. Ra4 {[%emt 0:00:00]} Ng3 {[%emt 0:01:01]} 51. Kh3 {[%emt 0:00:00]} Rd2 {[%emt 0:02:33]} 52. Bxe4 {[%emt 0:00:40]} Nxe4 $15 {[%emt 0:00:07] KRN-KR} 53. Rb4 {[%emt 0:00:09]} Ra2 {[%emt 0:04:31]} 54. Rd4 {[%emt 0:00:41]} Ra3+ {[%emt 0:00:32]} 55. Kh4 {[%emt 0:01:05]} Ra8 {[%emt 0:01:10][%cal Ra8h8]} 56. Kh5 $1 {[%emt 0:00:51]} Rg8 {[%emt 0:00:06]} 57. Ra4 {[%emt 0:00:24]} Rg1 {[%emt 0:01:28]} 58. Rb4 {[%emt 0:00:15]} Kf5 {[%emt 0:00:12][%cal Rg1h1]} 59. Rb5+ {[%emt 0:00:12]} Ke6 {[%emt 0:00:07]} 60. Rb6+ {[%emt 0:00:25]} Nd6 {[%emt 0:00:09]} 61. Ra6 {[%emt 0:00:16] [#]} Kf5 $1 {[%emt 0:01:14][%cal Rg1h1]} 62. Ra5+ {[%emt 0:00:17]} Kf4 {[%emt 0:00:05]} 63. Ra4+ {[%emt 0:00:07]} Ne4 {[%emt 0:00:10]} 64. Rb4 $1 {[%emt 0:00:10]} Rg5+ {[%emt 0:00:23]} 65. Kh4 {[%emt 0:00:48][%cal Ob4e4]} Ra5 {[%emt 0:01:53]} 66. Rd4 {[%emt 0:00:41]} Ra2 {[%emt 0:02:02]} (66... Ra7 $15 67. Kh5 Ke5) 67. Kh5 {[%emt 0:00:36]} (67. Kh3 $1 $11) 67... Rh2+ {[%emt 0:00:22]} 68. Kg6 {[%emt 0:00:04]} Ke5 {[%emt 0:00:04]} 69. Ra4 {[%emt 0:00:31]} Rg2+ {[%emt 0:00:05]} 70. Kh5 {[%emt 0:00:33]} Nf6+ {[%emt 0:00:58]} 71. Kh4 {[%emt 0:01:17]} Rg8 {[%emt 0:00:23]} 72. Ra5+ {[%emt 0:00:33]} Nd5 {[%emt 0:00:06]} 73. Rc5 {[%emt 0:01:09]} Ke4 {[%emt 0:00:52]} 74. Rc4+ {[%emt 0:00:49]} Kf3 {[%emt 0:00:37]} 75. Ra4 {[%emt 0:00:23]} Nc3 {[%emt 0:02:04]} 76. Ra3 {[%emt 0:01:15] [#]} Kf4 $1 {[%emt 0:00:07][%cal Rg8h8]} 77. Kh5 {[%emt 0:00:10]} Ne4 {[%emt 0:00:40]} 78. Ra4 $1 {[%emt 0:04:09]} Rg5+ {[%emt 0:00:25]} 79. Kh4 {[%emt 0:00:00] The position is equal.} Rb5 {[%emt 0:00:47]} 80. Rd4 {[%emt 0:00:00]} Kf5 {[%emt 0:01:45]} 81. Rd8 {[%emt 0:00:00]} Rb3 {[%emt 0:02:13]} 82. Rd5+ $1 {[%emt 0:00:00]} Kf4 {[%emt 0:00:14]} 83. Rd4 {[%emt 0:00:00]} Rb1 {[%emt 0:00:28][%cal Rb1h1]} 84. Kh5 {[%emt 0:00:09]} Ke5 {[%emt 0:00:24]} 85. Ra4 {[%emt 0:00:20]} Rh1+ {[%emt 0:00:24]} 86. Kg4 {[%emt 0:00:42]} Rg1+ {[%emt 0:00:06]} 87. Kh5 {[%emt 0:00:46]} Rg2 {[%emt 0:02:48]} 88. Ra5+ {[%emt 0:00:44]} Ke6 {[%emt 0:00:15]} 89. Ra6+ {[%emt 0:00:23]} Nd6 {[%emt 0:00:05]} 90. Kh4 {[%emt 0:00:31]} Rg8 {[%emt 0:00:15]} 91. Ra5 {[%emt 0:00:35]} Nf5+ {[%emt 0:00:10]} 92. Kh5 {[%emt 0:00:49]} Ng3+ {[%emt 0:02:48]} 93. Kh4 {[%emt 0:00:07]} Ne4 {[%emt 0:00:18]} 94. Kh5 {[%emt 0:00:50]} Kd6 {[%emt 0:00:57]} 95. Ra6+ {[%emt 0:00:20]} Ke5 {[%emt 0:00:08]} 96. Ra5+ {[%emt 0:00:06]} Kf4 {[%emt 0:00:11]} 97. Ra4 {[%emt 0:00:06]} Rg5+ {[%emt 0:00:18]} 98. Kh4 {[%emt 0:00:08]} Rc5 {[%emt 0:00:22]} 99. Rb4 {[%emt 0:00:12]} Kf3 {[%emt 0:00:20]} 100. Rb3+ {[%emt 0:00:21]} Nc3 {[%emt 0:00:14]} 101. Ra3 {[%emt 0:00:49]} Kf4 {[%emt 0:00:09]} 102. Ra8 {[%emt 0:00:20]} Rf5 {[%emt 0:00:18] Prevents Rf8.} 103. Ra1 {[%emt 0:01:06]} Ke5 {[%emt 0:00:34] Weighted Error Value: White=0.06 (flawless) /Black=0.04 (flawless) .  Mistake:       	White=2     	Black=1      Inaccurate:     	White=2     	Black=3      OK:         	White=44    	Black=30     Best:        	White=4     	Black=2      Strong:       	White=4     	Black=2} 1/2-1/2

[Event "French Top 16-A 2024"]
[Site "Chartres"]
[Date "2024.06.04"]
[Round "6.2"]
[White "Santos Latasa, Jaime"]
[Black "Solakian-Van Eyll, Jerome"]
[Result "1-0"]
[ECO "A07"]
[WhiteElo "2626"]
[BlackElo "2247"]
[Annotator "TA"]
[PlyCount "59"]
[EventDate "2024.06.01"]
[EventType "team-tourn"]
[EventCountry "FRA"]
[SourceTitle "playchess.com"]
[Source "ChessBase"]
[SourceQuality "1"]
[TimeControl "40/5400+30:1800+30"]

{[%evp 9,59,30,45,40,26,33,34,8,11,15,22,10,8,0,21,0,0,-15,0,-10,0,0,0,-12,0,-20,12,11,0,5,4,0,0,0,0,0,0,0,10,8,14,0,9,6,14,14,21,14,18,14,50,67]} 1. Nf3 {[%emt 0:00:26]} d5 {[%emt 0:00:13]} 2. g3 {[%emt 0:00:05]} b6 {[%emt 0:01:00]} 3. Bg2 {[%emt 0:00:28]} Bb7 {[%emt 0:00:19]} 4. c4 {[%emt 0:02:32]} dxc4 {[%emt 0:00:25]} 5. Na3 {[%emt 0:00:16]} e6 {[%emt 0:06:06]} 6. Nxc4 {[%emt 0:00:11]} Nd7 {[%emt 0:00:16]} 7. O-O {[%emt 0:12:53]} Be7 {[%emt 0:00:35]} 8. Qa4 {[%emt 1:17:39] Threatening Nce5.} Ngf6 {[%emt 0:04:00]} 9. Nce5 {[%emt 0:00:00][%cal Oe5f7] [#] aiming for Nxf7!} O-O {[%emt 0:06:36]} 10. Nc6 {[%emt 0:00:00]} Qe8 {[%emt 0:00:22]} 11. Nxe7+ {[%emt 0:00:00]} (11. Nxa7 $2 {perishes.} Qb8 12. d3 Rxa7 $19 (12... Qxa7 $2 13. Qc2 $19)) 11... Qxe7 {[%emt 0:00:05]} 12. d3 {[%emt 0:00:00]} c5 {[%emt 0:05:17]} 13. Qc2 {[%emt 0:00:00]} Rac8 {[%emt 0:13:35][%cal Ba8c8,Bc8c7,Bc7d7][%mdl 32]} 14. b3 {[%emt 0:00:00]} Nb8 {[%emt 0:09:18]} 15. Bb2 {[%emt 0:00:00]} Nc6 {[%emt 0:03:31][%cal Oc6d4]} 16. Qd2 {[%emt 0:00:00]} Rfd8 {[%emt 0:03:48]} 17. Rac1 {[%emt 0:00:00]} Rc7 {[%emt 0:03:36]} 18. Ne5 {[%emt 0:00:00]} Nxe5 {[%emt 0:06:31]} 19. Bxe5 {[%emt 0:00:00] A strong pair of Bishops.} Rcd7 {[%emt 0:00:11]} 20. Bxb7 {[%emt 0:00:00]} Rxb7 {[%emt 0:00:08]} 21. Bxf6 {[%emt 0:00:00]} Qxf6 {[%emt 0:10:07]} 22. b4 {[%emt 0:00:00]} cxb4 {[%emt 0:00:37]} 23. Qxb4 {[%emt 0:00:00]} g6 {[%emt 0:01:45]} 24. Rc2 {[%emt 0:00:00]} Qd4 {[%emt 0:03:20]} 25. Qd2 {[%emt 0:00:00]} Kg7 {[%emt 0:02:53]} 26. Rfc1 {[%emt 0:00:00]} b5 {[%emt 0:02:46]} 27. Rc5 {[%emt 0:00:00]} Rd5 {[%emt 0:04:09]} 28. Rc6 {[%emt 0:00:00]} h5 {[%emt 0:04:56]} 29. h4 {[%emt 0:00:00]} Rd6 {[%emt 0:00:41]} 30. e3 {[%emt 0:00:00] Weighted Error Value: White=0.06 (flawless) /Black=0.06 (flawless) .  Inaccurate:     	White=1     	Black=2      OK:         	White=9     	Black=10     Best:        	---       	Black=2} 1-0

[Event "French Top 16-A 2024"]
[Site "Chartres"]
[Date "2024.06.04"]
[Round "6.3"]
[White "Ganguly, Surya Shekhar"]
[Black "Grigoryan, Karen H."]
[Result "1-0"]
[ECO "B90"]
[WhiteElo "2576"]
[BlackElo "2583"]
[Annotator "RC"]
[PlyCount "87"]
[EventDate "2024.06.01"]
[EventType "team-tourn"]
[EventCountry "FRA"]
[SourceTitle "playchess.com"]
[Source "ChessBase"]
[SourceQuality "1"]
[TimeControl "40/5400+30:1800+30"]

1. e4 {[%emt 0:00:20]} c5 {[%emt 0:00:28]} 2. Nf3 {[%emt 0:00:11]} d6 {[%emt 0:00:17]} 3. d4 {[%emt 0:00:15]} cxd4 {[%emt 0:01:34]} 4. Nxd4 {[%emt 0:00:08]} Nf6 {[%emt 0:00:06]} 5. Nc3 {[%emt 0:00:06]} a6 {[%emt 0:00:04]} 6. h3 {[%emt 0:00:29]} e5 {[%emt 0:00:28]} 7. Nb3 {[%emt 0:00:41]} Be7 {[%emt 0:01:15]} 8. Be3 {[%emt 0:02:33]} Be6 {[%emt 0:01:02]} 9. Qf3 {[%emt 0:01:31]} Nbd7 {[%emt 0:02:40]} 10. g4 {[%emt 0:02:29]} h6 {[%emt 0:00:56]} 11. O-O-O {[%emt 0:01:11]} Rc8 {[%emt 0:05:32]} 12. Nd5 {[%emt 0:02:39]} Bxd5 {[%emt 0:06:23]} 13. exd5 {[%emt 0:01:27]} Qc7 {[%emt 0:01:17]} 14. Bd3 {[%emt 0:03:56]} a5 {[%emt 0:03:29]} 15. Nd2 {[%emt 0:10:05]} a4 {[%emt 0:02:46]} 16. h4 {[%emt 0:12:35]} a3 {[%emt 0:18:05]} 17. g5 {[%emt 0:00:31]} e4 {[%emt 0:01:49]} 18. Nxe4 {[%emt 0:00:24]} Nxd5 {[%emt 0:01:28]} 19. Bd4 {[%emt 0:02:37]} Ne5 {[%emt 0:05:02]} 20. Bxe5 {[%emt 0:04:02]} dxe5 {[%emt 0:01:05]} 21. Bb5+ {[%emt 0:08:13]} Kf8 {[%emt 0:00:20]} 22. Ba4 {[%emt 0:00:18]} Nf4 {[%emt 0:04:42]} 23. Bb3 {[%emt 0:05:38]} Qc6 {[%emt 0:04:12]} 24. Kb1 {[%emt 0:00:55]} Rd8 {[%emt 0:09:35]} 25. Rxd8+ {[%emt 0:05:46]} Bxd8 {[%emt 0:00:18]} 26. Rd1 {[%emt 0:00:05]} Be7 {[%emt 0:00:47]} 27. g6 {[%emt 0:07:53]} f5 {[%emt 0:05:01]} 28. h5 {[%emt 0:06:01]} fxe4 {[%emt 0:04:54]} 29. Qg4 {[%emt 0:00:12]} Bf6 {[%emt 0:01:35]} 30. Qd7 {[%emt 0:03:11]} Qxd7 {[%emt 0:00:34]} 31. Rxd7 {[%emt 0:00:05]} b5 {[%emt 0:02:46]} 32. Rb7 {[%emt 0:00:22]} Nxh5 {[%emt 0:06:06]} 33. Rb8+ {[%emt 0:01:37]} Ke7 {[%emt 0:00:08]} 34. Rxh8 {[%emt 0:00:05]} Bh4 {[%emt 0:01:41]} 35. Rb8 {[%emt 0:02:43]} Bxf2 {[%emt 0:00:59]} 36. Rb7+ {[%emt 0:00:23]} Kd6 {[%emt 0:00:41]} 37. c4 {[%emt 0:00:13]} bxc4 {[%emt 0:03:34]} 38. Bd1 {[%emt 0:00:08]} Nf4 {[%emt 0:00:25]} 39. Rxg7 {[%emt 0:00:06]} Bd4 {[%emt 0:04:01]} 40. Bg4 {[%emt 0:02:38]} e3 {[%emt 0:01:47]} 41. Rd7+ {[%emt 0:30:31]} Kc6 {[%emt 0:30:05]} 42. g7 {[%emt 0:02:36]} e2 {[%emt 0:00:08]} 43. Bxe2 {[%emt 0:00:04]} Nxe2 {[%emt 0:00:31]} 44. Rd8 {[%emt 0:01:30]} 1-0

[Event "French Top 16-A 2024"]
[Site "Chartres"]
[Date "2024.06.04"]
[Round "6.3"]
[White "Sohier, Julien"]
[Black "Sonis, Francesco"]
[Result "0-1"]
[ECO "B51"]
[WhiteElo "2214"]
[BlackElo "2579"]
[Annotator "TA"]
[PlyCount "66"]
[EventDate "2024.06.01"]
[EventType "team-tourn"]
[EventCountry "FRA"]
[SourceTitle "playchess.com"]
[Source "ChessBase"]
[SourceQuality "1"]
[TimeControl "40/5400+30:1800+30"]

{[%evp 12,66,48,43,43,19,22,15,19,21,15,0,4,-6,0,-49,-43,-50,-50,-45,-35,-39,-37,-46,-62,-44,-41,-60,-59,-105,-109,-115,-96,-87,-90,-137,-122,-130,-102,-117,-110,-110,-131,-107,-76,-81,0,-35,0,-191,-190,-406,-391,-617,-599,-1110,-1085]} 1. e4 {[%emt 0:07:16]} c5 {[%emt 0:00:05]} 2. Nf3 {[%emt 0:00:17]} d6 {[%emt 0:00:09]} 3. Bb5+ {[%emt 0:00:09]} Nc6 {[%emt 0:01:06]} 4. O-O {[%emt 0:00:16]} Bd7 {[%emt 0:01:03]} 5. Re1 {[%emt 0:00:17]} g6 {[%emt 0:00:04]} 6. c3 {[%emt 0:05:14]} a6 {[%emt 0:00:04]} 7. Bf1 {[%emt 0:01:54]} Bg7 {[%emt 0:00:15]} 8. h3 {[%emt 0:02:56]} e5 {[%emt 0:00:05]} 9. Na3 {[%emt 0:06:05][%cal Od2d4]} Nge7 {[%emt 0:00:09] The position is equal.} 10. Nc4 {[%emt 0:01:03]} Be6 {[%emt 0:04:16]} 11. a4 {[%emt 0:01:49]} O-O {[%emt 0:00:33]} 12. d3 {[%emt 0:02:52]} h6 {[%emt 0:00:36]} 13. Rb1 {[%emt 0:07:34]} (13. Be3 $11) 13... b5 $15 {[%emt 0:01:25]} 14. axb5 {[%emt 0:01:16]} axb5 {[%emt 0:00:06]} 15. Na3 {[%emt 0:01:54]} Qb6 {[%emt 0:03:51]} 16. d4 {[%emt 0:07:34]} exd4 {[%emt 0:04:48]} 17. cxd4 {[%emt 0:05:44]} Nxd4 {[%emt 0:06:32]} 18. Nxd4 {[%emt 0:03:24]} cxd4 {[%emt 0:00:05]} 19. Bxb5 {[%emt 0:00:50]} Rfc8 {[%emt 0:00:35]} 20. Bf4 {[%emt 0:04:44]} (20. Bd3 $15 {might be stronger.}) 20... g5 $17 {[%emt 0:00:51]} 21. Bg3 {[%emt 0:02:31]} Ng6 {[%emt 0:01:55]} 22. Qe2 {[%emt 0:07:43]} Be5 {[%emt 0:05:37]} 23. Bd3 {[%emt 0:06:00]} (23. Bxe5 $142 dxe5 24. g3) 23... Qb3 {[%emt 0:03:59]} 24. Nb5 {[%emt 0:05:37]} Bxg3 {[%emt 0:17:15]} 25. fxg3 {[%emt 0:00:54]} Ne5 {[%emt 0:00:05]} 26. Red1 {[%emt 0:04:16] [#]} Qb4 {[%emt 0:01:10]} 27. Na3 {[%emt 0:01:20]} Bb3 {[%emt 0:05:51] Black has more active pieces.} 28. Rd2 {[%emt 0:00:53]} Rc5 {[%emt 0:00:28]} (28... g4 $17 {...gxh3 is the strong threat.} 29. h4 Qc5) 29. Kh2 {[%emt 0:02:51]} Rac8 {[%emt 0:00:37]} 30. Rf1 $2 {[%emt 0:02:41] [#]} (30. Qf2 $11 {and White is okay.}) 30... Rc1 $1 $36 {[%emt 0:02:50][%mdl 2048] Black is in control.} 31. Nc2 $2 {[%emt 0:04:36]} (31. Rxc1 Rxc1 32. Qf2) 31... R8xc2 $1 {[%emt 0:00:28]} 32. Bxc2 {[%emt 0:00:59] [#]} (32. Rxc2 $142 Bxc2 33. Bxc2 Rxf1 (33... Qxb2 $2 34. Rxc1 Qxc1 35. Qd1 $19) 34. Qxf1) 32... d3 $1 {[%emt 0:02:57][%mdl 512]} 33. Rxd3 {[%emt 0:02:52]} (33. Bxd3 Rxf1) 33... Rxc2 {[%emt 0:00:06] Weighted Error Value: White=0.73/Black=0.11 (very precise) .  Loses game:     	White=1     	---        Mistake:       	White=5     	Black=1      Inaccurate:     	White=2     	Black=1      OK:         	White=5     	Black=10     Best:        	White=1     	Black=1      Strong:       	---       	Black=1      Brilliant:      	---       	Black=1} 0-1